Workbook

Sheet Budget
A1: MUKTI Coaching budget for 2013-14
B3: Particulars | C3: No of Centers | D3: Total No. Teachers | E3: Monthly Cost | F3: No. of Months | G3: Calculated | H3: Total expenses (INR) | I3: Remarks
B5: Teacher Salaries | H5: =G8+G7+G6+G9 -> 786780
B6: Assistance Teacher Salary | C6: 8 | D6: 24 | E6: 55165 | F6: 12 | G6: =E6*F6 -> 661980
B7: Center assistant | D7: 2 | E7: 3500 | F7: 12 | G7: 42000
B8: project Coordinator | D8: 1 | E8: 3400 | F8: 12 | G8: 40800
B9: Project Advisor/ chief coordinator | D9: 1 | E9: 3500 | F9: 12 | G9: 42000
G10: 0
B11: Other Expenses | G11: 0
B12: Material Purchase and Recuring Expenses | C12: 8 | E12: 1000 | F12: 12 | G12: =C12*E12*F12 -> 96000 | H12: =G12 -> 96000
B13: Special coaching program for MP and HS student | C13: 2 | E13: 30000 | F13: 1 | G13: =E13*F13*C13 -> 60000 | H13: =G13 -> 60000
B14: Accounting and communication expenses (Including Travel, and Administrative) | C14: 0.06 | H14: 60000
B16: Furniture help to existing coahing centre | C16: 6 | E16: 4000 | F16: 1 | G16: =E16*F16*C16 -> 24000 | H16: =G16 -> 24000
B17: (In stead of rent we are providing it)
B19: continues student awarding | C19: 8 | E19: 3000 | G19: =E19*C19 -> 24000 | H19: =G19 -> 24000
B20: Gurdian/ parent awarness programme | C20: 8 | E20: 2500 | G20: =E20*C20 -> 20000 | H20: =G20 -> 20000
B21: Total Budet | H21: =SUM(H5:H20) -> 1070780
C23: No of center | D23: Total student | E23: Per month | F23: No of Month | H23: Total Recovery
B24: MUKTI Recovery from Student Fees | C24: 8 | D24: 800 | E24: 15 | F24: 10 | G24: =-D24*E24*F24 -> -120000 | H24: 120000
B27: Total Funding Requested | H27: =H21-H24 -> 950780
F30: USD/Rs | G30: 55
F31: Total USD $ | G31: =H27/G30 -> 17286.90909

Sheet Teacher details
A1: Mukti Coaching programme Associates for 2013-14
A2: Srl No | B2: Name of the Employee | C2: Designation
A3: 1 | B3: Animesh Bera | C3: Teacher
A4: 2 | B4: Bipradas Jatua | C4: Teacher
A5: 3 | B5: Rabin Halder | C5: Teacher
A6: 4 | B6: Mangal Biswas | C6: Teacher
A7: 5 | B7: Dipak Halder | C7: Teacher
A8: 6 | B8: Ashoke Das | C8: Teacher
A9: 7 | B9: Ramprasad Gayen | C9: Teacher
A10: 8 | B10: Harisadhan Mandal | C10: Teacher
A11: 9 | B11: Ratikanta Manna | C11: Teacher
A12: 10 | B12: Ratan Kr Gayen | C12: Teacher
A13: 11 | B13: Bijoy Mandal | C13: Teacher
A14: 12 | B14: Mantu Mistri | C14: Teacher
A15: 13 | B15: Nimai Midye | C15: Teacher
A16: 14 | B16: Susanta Purkait | C16: Teacher
A17: 15 | B17: Sarna Naskar | C17: Teacher
A18: 16 | B18: Suman Jana | C18: Teacher
A19: 17 | B19: Pintu Halder | C19: Teacher
A20: 18 | B20: Sima Purkait | C20: Teacher
A21: 19 | B21: Madan Halder | C21: Teacher
A22: 20 | B22: Rajeswar Halder | C22: Teacher
A23: 21 | B23: Diptendu Mandal | C23: Teacher
A24: 22 | B24: Subash Purkait | C24: Teacher
A25: 23 | B25: Jayadrata Halder | C25: Teacher
A26: 24 | B26: MAMATA BANERJEE | C26: Teacher
A27: 25 | B27: RINA SANTRA | C27: Teacher
A28: 26 | B28: Sridam Mandal | C28: Teacher Assistance
A29: 27 | B29: Balaram Halder | C29: Teacher Assistance
A30: 28 | B30: BIMAL KHAN | C30: Project Coordinator
A31: 29 | B31: Subimal Guria | C31: Project Advisor

Sheet Center details
A1: Mukti Coaching Center Report 2013-14
A3: Sl. No. | B3: GP Name | C3: Name of center | D3: No .teach | E3: No. Students | F3: No. Girls | G3: No. Boys
A5: 1 | B5: Kankandighi | C5: South Kankandighi Free Primary School (Daktargheri) | D5: 3 | E5: 107 | F5: 57 | G5: 50
A6: 2 | C6: Jogendrapur Mukti Coaching Center | D6: 3 | E6: 143 | F6: 70 | G6: 73
A7: 3&4 | C7: Kankandighi Babujan Sipar H.S. Coaching Center | D7: 6 | E7: 341 | F7: 168 | G7: 173
A8: 5 | B8: Nagendrapur | C8: Purba Sridharpur Coaching Center | D8: 3 | E8: 97 | F8: 57 | G8: 40
A9: 6 | C9: Baradanagar | D9: 3 | E9: 100 | F9: 57 | G9: 43
A10: 7 | C10: Nagendrapur | D10: 3 | E10: 85 | F10: 50 | G10: 35
A11: 8 | C11: Damkal | D11: 3 | E11: 148 | F11: 78 | G11: 70
C12: Total | D12: =SUM(D5:D11) -> 24 | E12: =SUM(E5:E11) -> 1021 | F12: =SUM(F5:F11) -> 537 | G12: =SUM(G5:G11) -> 484
E14: % | F14: =(F12/E12)*100 -> 52.59549461 | G14: =(G12/E12)*100 -> 47.40450539
A19: Sl. No. | B19: GP Name | C19: Name of center | E19: v | F19: vi | G19: vii | H19: vii | I19: ix | J19: x | K19: Total
A20: 1 | C20: Baradanagar | E20: 21 | F20: 13 | G20: 12 | H20: 13 | I20: 20 | J20: 21 | K20: 100
A21: 2 | C21: Nagendrapur | E21: 19 | F21: 17 | G21: 14 | H21: 8 | I21: 14 | J21: 13 | K21: 85
A22: 3 | C22: Purbasridharpur | E22: 13 | F22: 23 | G22: 13 | H22: 17 | I22: 16 | J22: 15 | K22: 97
A23: 4 | C23: Damkal | E23: 26 | F23: 23 | G23: 29 | H23: 28 | I23: 26 | J23: 16 | K23: 148
A24: 5 | C24: Dr Ghari | E24: 22 | F24: 13 | G24: 28 | H24: 13 | I24: 22 | J24: 9 | K24: 107
A25: 6&7 | C25: Babujan Sepai | E25: 55 | F25: 54 | G25: 54 | H25: 56 | I25: 64 | J25: 58 | K25: 341
A26: 8 | C26: Jagandra pur | E26: 28 | F26: 23 | G26: 23 | H26: 25 | I26: 18 | J26: 26 | K26: 143
E27: Total | K27: 1021
